bitfinex-derivatives/quotes_SOLF0:USTF0_20240830
["timestamp","ask_amount","ask_price","bid_price","bid_amount"]
[1725029019018,34.81,137.56,137.44,34.81]
[1725029019324,34.81,137.54,137.47,3.6365]
[1725029019524,0.05193773,137.51,137.49,0.0542304]
[1725029026824,34.81,137.5,137.43,1.3823]
[1725029027224,34.81,137.48,137.44,7.21133174]
[1725029027832,0.05469102,137.47,137.45,0.04662187]
[1725029028226,42.073,137.46,137.39,3.6386]
[1725029028430,7.38,137.45,137.39,3.67437074]
[1725029028734,3.6378,137.43,137.38,3.6389]
[1725029028933,34.81,137.44,137.36,4.93309679]
[1725029028934,34.81,137.42,137.36,4.93309679]
[1725029029128,34.81,137.42,137.36,1.3278]
[1725029029336,0.04891174,137.4,137.38,0.04809453]
[1725029029633,34.85891174,137.4,137.38,0.04809453]
[1725029030338,3.6387,137.39,137.38,0.04809453]
[1725029031032,3.6393,137.37,137.32,4.9733]
[1725029031331,34.81,137.35,137.32,0.02]
[1725029031534,34.81,137.35,137.32,3.71603624]
[1725029031728,34.81,137.35,137.32,0.02]
[1725029031924,34.85757188,137.35,137.32,0.07251913]
[1725029032325,0.04757188,137.35,137.32,3.71943498]
[1725029032530,0.04757188,137.35,137.32,0.07251913]
[1725029033235,0.04757188,137.35,137.32,3.674317]
[1725029033432,3.67464349,137.43,137.32,0.07251913]
[1725029033631,3.6383,137.41,137.36,3.6392]
[1725029033828,42.19,137.42,137.32,3.64696811]
[1725029034036,34.81,137.4,137.32,3.64696811]
[1725029034537,0.055158,137.37,137.35,0.05509632]
[1725029034734,0.05041127,137.37,137.36,3.6392]
[1725029035942,3.638,137.42,137.39,3.6386]
[1725029036240,34.81,137.45,137.34,34.81]
[1725029036440,3.55054193,137.44,137.38,3.6388]
[1725029036737,42.19,137.45,137.35,1.3581]
[1725029036946,0.05025713,137.41,137.39,0.04727925]
[1725029037436,3.68845713,137.41,137.39,0.04727925]
[1725029037737,0.05025713,137.41,137.39,0.04727925]
[1725029037940,3.6384,137.4,137.39,0.04727925]
[1725029039243,7.31325713,137.41,137.39,0.04727925]
[1725029040238,34.81,137.4,137.39,0.04727925]
[1725029040448,38.4484,137.4,137.39,0.04727925]
[1725029040743,34.81,137.4,137.32,3.64696811]
[1725029040938,3.6391,137.38,137.34,3.64]
[1725029041530,0.04749288,137.37,137.32,3.64696811]
[1725029041739,0.04749288,137.37,137.35,0.05021288]
[1725029042539,34.85749288,137.37,137.35,0.05021288]
[1725029042841,34.85749288,137.37,137.32,0.02]
[1725029043146,34.81,137.34,137.32,0.02]
[1725029043533,34.81,137.34,137.24,3.57830436]
[1725029043534,34.81,137.33,137.24,3.57830436]
[1725029043841,3.641,137.31,137.26,3.642]
[1725029044140,0.04725135,137.3,137.27,0.0473247]
[1725029045238,34.81,137.29,137.27,0.0473247]
[1725029045446,34.81,137.28,137.27,0.0473247]
[1725029045747,34.81,137.28,137.16,38.9219]
[1725029045952,3.55828943,137.28,137.18,34.81]
[1725029046136,34.81,137.27,137.18,34.81]
[1725029046338,34.81,137.27,137.16,7.67091725]
[1725029046339,34.81,137.25,137.16,7.38]
[1725029046546,34.81,137.25,137.16,3.58699919]
[1725029046738,0.05306633,137.22,137.19,0.04899467]
[1725029047944,3.60801598,137.22,137.19,0.04899467]
[1725029048140,42.0,137.22,137.1,2.7104]
[1725029048341,42.0,137.19,137.13,3.6455]
[1725029048639,45.59501158,137.19,137.14,3.64490689]
[1725029048842,7.38,137.18,137.1,2.7104]
[1725029049042,7.38,137.2,137.1,6.2948498]
[1725029049236,49.38,137.2,137.14,0.05036923]
[1725029049437,0.05202317,137.16,137.14,0.05036923]
[1725029049639,0.05202317,137.16,137.15,3.645]
[1725029049840,3.67619796,137.16,137.11,3.65624068]
[1725029050148,42.0,137.15,137.05,1.3429]
[1725029050346,42.0,137.15,137.05,5.06764509]
[1725029050645,42.0,137.15,137.05,43.3429]
[1725029050948,0.04931779,137.11,137.09,0.05142176]
[1725029051258,0.04889001,137.11,137.09,0.05232618]
[1725029051550,0.04889001,137.11,137.09,3.72678612]
[1725029051843,0.04889001,137.11,137.1,3.6464]
[1725029052145,42.0,137.17,137.16,3.6448]
[1725029052339,42.0,137.17,137.1,1.3625]
[1725029052942,42.0,137.2,137.1,1.3625]
[1725029053145,42.0,137.15,137.1,2.6764]
[1725029053351,42.0,137.15,137.14,0.05545907]
[1725029053553,42.0,137.15,137.11,0.04918011]
[1725029053749,42.0,137.15,137.12,3.6458]
[1725029053950,42.0,137.15,137.11,0.04918011]
[1725029054258,7.42915344,137.16,137.11,0.04918011]
[1725029054550,0.04915344,137.16,137.11,0.04918011]
[1725029055053,0.04915344,137.16,137.15,3.645]
[1725029055245,0.04915344,137.16,137.1,1.3139]
[1725029055246,0.04915344,137.16,137.14,0.05137084]
[1725029055447,42.0,137.15,137.14,0.05137084]
[1725029056545,45.645,137.15,137.14,0.05137084]
[1725029056745,42.0,137.15,137.14,0.05137084]
[1725029057151,0.04915344,137.16,137.14,0.05137084]
[1725029059055,0.04915344,137.16,137.15,3.645]
[1725029059568,0.04915344,137.16,137.14,3.69647084]
[1725029060061,0.04915344,137.16,137.14,0.05137084]
[1725029060268,42.0,137.15,137.14,0.05137084]
[1725029060557,42.0,137.14,137.06,1.3139]
[1725029060752,42.0,137.17,137.06,1.3139]
[1725029060952,49.38,137.17,137.06,4.97971188]
[1725029061158,49.38,137.17,137.06,1.3139]
[1725029061354,7.38,137.17,137.06,1.3139]
[1725029061554,0.04924416,137.13,137.1,3.70007624]
[1725029062063,0.04924416,137.13,137.12,3.6458]
[1725029062455,3.643,137.23,137.12,42.0]
[1725029062658,42.0,137.24,137.12,42.0]
[1725029062659,42.0,137.22,137.13,1.3653]
[1725029062970,45.63079757,137.22,137.13,1.3653]
[1725029063158,3.6435,137.21,137.13,1.3653]
[1725029063354,7.38,137.24,137.13,1.3653]
[1725029063657,43.3659,137.26,137.17,3.6445]
[1725029063658,0.0531086,137.18,137.17,3.6445]
[1725029063859,0.047463,137.19,137.16,0.04867503]
[1725029064061,42.0,137.24,137.14,7.38]
[1725029064271,0.05336763,137.19,137.16,0.04933962]
[1725029064555,0.05285455,137.19,137.16,0.0545689]
[1725029064755,0.05285455,137.19,137.17,3.6445]
[1725029064956,0.05285455,137.19,137.16,0.0545689]
[1725029065357,0.05285455,137.19,137.17,3.6443]
[1725029065559,0.05285455,137.19,137.16,0.0545689]
[1725029065966,0.05285455,137.19,137.18,3.6442]
[1725029066864,0.05285455,137.19,137.17,3.6444]
[1725029067062,0.05285455,137.19,137.16,0.0545689]
[1725029067559,0.05285455,137.19,137.18,3.6442]
[1725029067954,0.05285455,137.19,137.17,3.6443]
[1725029068156,0.05285455,137.19,137.17,3.66591134]
[1725029068959,0.05285455,137.19,137.17,3.6445]
[1725029069363,0.05285455,137.19,137.17,3.56107804]
[1725029069962,0.05285455,137.19,137.16,0.0545689]
[1725029070164,7.38,137.28,137.17,42.0]
[1725029070165,3.6425,137.25,137.17,42.0]
[1725029070354,3.60224868,137.28,137.17,42.0]
[1725029070553,44.6834,137.29,137.17,49.38]
[1725029070770,52.0634,137.29,137.17,42.0]
[1725029071066,0.05047153,137.24,137.22,0.04972373]
[1725029071265,0.04894805,137.24,137.22,0.04972373]
[1725029071670,7.42894805,137.24,137.22,0.04972373]
[1725029071966,42.0,137.23,137.14,1.3753]
[1725029072170,3.61026421,137.22,137.14,5.10433968]
[1725029072365,49.38,137.23,137.14,5.10433968]
[1725029072366,42.0,137.2,137.14,5.10433968]
[1725029072556,45.73176964,137.2,137.12,3.60641774]
[1725029072757,0.05122548,137.17,137.15,0.0481105]
[1725029073761,0.05122548,137.17,137.16,3.6448]
[1725029073966,0.05122548,137.17,137.15,0.0481105]
[1725029074368,0.05122548,137.17,137.1,42.0]
[1725029074970,0.05122548,137.17,137.11,5.07328465]
[1725029075371,0.05122548,137.17,137.13,0.04691052]
[1725029075774,0.05122548,137.17,137.15,3.6448]
[1725029076171,0.05122548,137.17,137.13,0.04691052]
[1725029076773,0.05122548,137.17,137.13,3.69251052]
[1725029076973,0.05122548,137.17,137.13,0.04691052]
[1725029077281,3.69582548,137.17,137.13,0.04691052]
[1725029077480,0.05122548,137.17,137.13,0.04691052]
[1725029077681,42.05122548,137.17,137.13,0.04691052]
[1725029077979,3.6453,137.14,137.13,0.04691052]
[1725029078184,0.05122548,137.17,137.13,0.04691052]
[1725029079476,0.05122548,137.17,137.14,3.6452]
[1725029079879,0.05122548,137.17,137.13,0.04691052]
[1725029080077,0.05122548,137.17,137.15,3.6449]
[1725029080577,0.05122548,137.17,137.13,0.04691052]
[1725029080980,44.7315,137.26,137.15,42.0]
[1725029081280,3.64428412,137.25,137.18,3.6442]
[1725029081584,51.9945,137.26,137.18,7.21157434]
[1725029081777,3.6431,137.23,137.19,3.6439]
[1725029081973,42.0,137.24,137.16,2.7847]
[1725029082180,3.6435,137.21,137.2,0.04758788]
[1725029082374,42.05289528,137.22,137.1,3.60585398]
[1725029082375,42.0,137.19,137.1,3.60585398]
[1725029082576,16.3159,137.23,137.09,1.3672]
[1725029082577,0.0505123,137.16,137.13,0.0555549]
[1725029082882,0.0505123,137.16,137.13,0.0510491]
[1725029082883,3.6453,137.14,137.13,0.0510491]
[1725029083582,42.0,137.15,137.05,1.3672]
[1725029083583,3.6465,137.1,137.05,1.3672]
[1725029083781,42.0,137.13,137.05,4.97246874]
[1725029083985,42.0,137.13,137.05,4.93713368]
[1725029084277,42.0,137.13,137.05,8.58473368]
[1725029084479,5.04896006,137.15,137.05,8.58473368]
[1725029084480,47.04896006,137.15,137.05,4.93713368]
[1725029084782,3.6465,137.1,137.09,0.05172505]
[1725029085783,3.6465,137.1,137.0,60.6]
[1725029085784,42.0,137.1,137.0,10.5]
[1725029086082,42.0,137.05,137.0,10.5]
[1725029086286,50.1,137.05,137.0,10.5]
[1725029086580,42.0,137.03,137.0,10.5]
[1725029086777,42.04745862,137.03,137.0,10.55342906]
[1725029086982,8.1,137.02,137.0,6.35252906]
[1725029087280,50.1,137.01,136.93,1.2994]
[1725029087485,42.0,137.03,136.93,46.91209817]
[1725029087682,3.6486,137.02,136.96,3.6499]
[1725029088084,3.6486,137.02,136.92,1.3829]
[1725029088290,3.6486,137.02,136.58,39.3670721]
[1725029088291,126.0,136.93,136.5,7.53664544]
[1725029088585,42.0,136.79,136.52,42.0]
[1725029088788,42.0,136.69,136.57,42.0]
[1725029089081,42.0,136.75,136.57,3.58634253]
[1725029089289,42.0,136.71,136.5,7.53664544]
[1725029089488,0.05226882,136.67,136.65,0.02398045]
[1725029089680,3.6581,136.66,136.65,0.02398045]
[1725029089984,0.04995523,136.67,136.65,0.02398045]
[1725029090176,42.04995523,136.67,136.65,0.02398045]
[1725029090380,0.04995523,136.67,136.65,0.02398045]
[1725029091090,42.0,136.81,136.65,42.02398045]
[1725029091395,3.6543,136.81,136.73,3.6561]
[1725029091694,42.0,136.83,136.72,3.71513181]
[1725029091894,0.05487371,136.79,136.76,0.0555733]
[1725029092388,42.0,136.91,136.76,45.68366598]
[1725029092588,42.0,136.91,136.76,55.92366598]
[1725029092789,42.0,136.88,136.76,3.68366598]
[1725029092987,42.0,136.85,136.74,1.3981]
[1725029093289,0.05588165,136.81,136.78,0.05338186]
[1725029095387,0.05588165,136.81,136.79,3.6546]
[1725029095685,0.05588165,136.81,136.78,0.05338186]
[1725029095889,45.6519,136.9,136.77,42.0]
[1725029096094,45.6519,136.9,136.78,1.3783]
[1725029096384,42.0,136.92,136.8,42.0]
[1725029096590,42.0,136.9,136.81,3.63799466]
[1725029096797,42.0,136.9,136.78,1.3783]
[1725029096977,0.05579836,136.85,136.83,0.05222056]
[1725029097292,0.04732416,136.85,136.83,0.05222056]
[1725029098477,3.6533,136.84,136.83,0.05222056]
[1725029098677,0.04732416,136.85,136.83,0.05222056]
[1725029099687,3.70042416,136.85,136.83,0.05222056]
[1725029099989,0.04732416,136.85,136.83,0.05222056]
[1725029100796,3.70052416,136.85,136.83,0.05222056]
[1725029100986,0.04732416,136.85,136.83,0.05222056]
[1725029101185,42.0,136.84,136.74,1.3981]
[1725029101385,42.0,136.81,136.72,1.3783]
[1725029101793,32.80312721,136.87,136.72,1.3783]
[1725029101794,3.654,136.82,136.72,1.3783]
[1725029101989,42.0,136.83,136.72,1.3783]
[1725029102186,0.04796093,136.79,136.76,0.05121588]
[1725029102387,0.04796093,136.79,136.78,3.6549]
[1725029102589,0.04796093,136.79,136.78,7.29359151]
[1725029102790,42.0,136.86,136.78,3.63869151]
[1725029102996,42.0,136.88,136.76,42.0]
[1725029103394,3.6525,136.87,136.81,3.6539]
[1725029103590,42.0,136.86,136.72,54.0183]
[1725029104095,0.05352735,136.8,136.78,0.04936051]
[1725029104292,0.05488117,136.8,136.78,0.04936051]
[1725029104492,0.05488117,136.8,136.79,3.6546]
[1725029104795,42.0,136.89,136.78,3.65660169]
[1725029105092,42.0,136.89,136.76,42.0]
[1725029105296,42.0,136.91,136.79,42.0]
[1725029105498,3.6523,136.88,136.83,3.6533]
[1725029105698,42.0,136.91,136.79,45.6016029]
[1725029105894,0.04924166,136.87,136.84,0.04635148]
[1725029106103,0.04924166,136.87,136.85,3.653]
[1725029106497,0.04924166,136.87,136.84,0.04635148]
[1725029106698,0.04924166,136.87,136.86,3.6528]
[1725029106890,42.0,136.98,136.83,42.0]
[1725029107099,42.0,136.98,136.86,42.0]
[1725029107293,42.0,136.98,136.86,3.59612435]
[1725029107495,42.0,136.93,136.84,1.4139]
[1725029107898,0.05307679,136.9,136.87,0.05484173]
[1725029108197,0.04999559,136.9,136.87,0.05323373]
[1725029108595,3.6522,136.89,136.87,0.05323373]
[1725029108789,0.04999559,136.9,136.87,0.05323373]
[1725029108998,3.652,136.89,136.87,0.05323373]
[1725029109304,0.04999559,136.9,136.79,3.6016029]
[1725029109305,42.0,136.88,136.79,3.6016029]
[1725029109598,45.6519,136.9,136.78,2.7593]
[1725029109795,42.0,136.9,136.78,2.7593]
[1725029109999,3.653,136.86,136.78,6.43526333]
[1725029110204,42.0,136.86,136.78,2.7593]
[1725029110506,0.04821636,136.83,136.81,0.04828813]
[1725029110705,3.6538,136.82,136.81,0.04828813]
[1725029111199,3.6538,136.82,136.48,224.0]
[1725029111200,42.0,136.84,136.68,42.0]
[1725029111396,42.0,136.75,136.66,2.7169]
[1725029111598,7.263,136.87,136.7,42.0]
[1725029111803,42.0,136.83,136.7,42.0]
[1725029111997,0.05326486,136.78,136.75,0.05620392]
[1725029112190,0.05326486,136.78,136.75,3.70383561]
[1725029112396,0.05326486,136.78,136.75,0.05620392]
[1725029112589,42.0,136.85,136.72,42.0]
[1725029112590,42.0,136.85,136.74,42.0]
[1725029112801,42.0,136.83,136.72,11.04]
[1725029113002,42.0,136.85,136.74,42.0]
[1725029113399,42.0,136.85,136.72,14.77646457]
[1725029113609,42.0,136.82,136.72,3.73646457]
[1725029113805,42.0,136.79,136.77,0.05025754]
[1725029114009,42.0,136.79,136.67,11.44]
[1725029114010,87.67285105,136.79,136.67,11.44]
[1725029114214,87.67285105,136.79,136.72,0.05137975]
[1725029114215,0.05538287,136.74,136.72,0.05137975]
[1725029114412,45.6562,136.73,136.72,0.05137975]
[1725029114613,42.0,136.73,136.59,53.44]
[1725029115003,3.6573,136.7,136.6,1.3487]
[1725029115208,7.263,136.78,136.61,42.0]
[1725029115412,42.0,136.76,136.63,42.0]
[1725029115606,42.0,136.76,136.68,0.0514831]
[1725029115809,0.05028554,136.71,136.68,0.0514831]
[1725029116112,0.05028554,136.71,136.68,3.7088831]
[1725029116303,0.05028554,136.71,136.68,0.0514831]
[1725029116701,0.05028554,136.71,136.7,3.657]
[1725029117214,42.0,136.78,136.68,0.0514831]
[1725029117408,42.0,136.78,136.6,1.3487]
[1725029117409,42.0,136.73,136.6,1.3487]
[1725029117604,42.0,136.7,136.6,5.06714897]
[1725029117922,42.0,136.7,136.6,1.3487]
[1725029118121,0.04616329,136.66,136.64,0.04993777]
[1725029118313,0.05387859,136.66,136.64,0.04920835]
[1725029118513,42.0,136.73,136.6,4.99829842]
[1725029118514,42.0,136.73,136.6,46.99829842]
[1725029118705,1.0,136.77,136.65,42.0]
[1725029119019,53.46,136.81,136.67,42.0]
[1725029119204,42.0,136.81,136.67,45.71433226]
[1725029119404,3.6546,136.8,136.7,42.0]
[1725029119609,0.04626814,136.76,136.74,0.05217611]
[1725029120412,0.04626814,136.76,136.74,3.70807611]
[1725029120608,0.04626814,136.76,136.74,0.05217611]
[1725029122320,0.04626814,136.76,136.75,3.6557]
[1725029122616,11.46,136.86,136.74,0.05217611]
[1725029122617,42.0,136.86,136.74,42.0]
[1725029122809,3.6537,136.83,136.78,3.6547]
[1725029123210,42.0,136.88,136.76,42.0]
[1725029123421,11.46,136.89,136.76,42.0]
[1725029123612,0.05341856,136.83,136.81,0.05117822]
[1725029123918,3.6512,136.92,136.87,3.6524]
[1725029124120,45.63643359,136.96,136.81,42.0]
[1725029124417,42.0,136.96,136.83,42.0]
[1725029124814,0.04769773,136.91,136.88,0.04983476]
[1725029125114,0.05088928,136.91,136.88,0.04853427]
[1725029125317,29.22,137.05,136.88,45.66770339]
[1725029125520,3.6491,137.0,136.88,42.0]
[1725029125720,45.66664082,137.02,136.88,45.69950584]
[1725029125921,3.6494,136.99,136.93,3.6507]
[1725029126219,42.0,137.02,136.88,45.69950584]
[1725029126421,0.05488173,136.96,136.94,0.04829467]
[1725029126616,42.0,137.02,136.96,3.65]
[1725029126817,0.05423131,137.0,136.98,0.05205897]
[1725029127120,0.05617228,137.0,136.98,0.05364572]
[1725029127627,0.05617228,137.0,136.99,3.6493]
[1725029127825,0.05617228,137.0,136.98,0.05364572]
[1725029128315,0.05617228,137.0,136.99,3.6493]
[1725029128519,42.0,137.11,136.98,42.0]
[1725029128715,3.6471,137.08,137.02,3.6482]
[1725029129110,42.0,137.11,136.98,42.0]
[1725029129521,0.04873635,137.06,137.03,0.04776015]
[1725029131422,0.04873635,137.06,137.03,3.69586015]
[1725029131720,0.04873635,137.06,137.03,0.04776015]
[1725029132120,0.04873635,137.06,137.05,3.6477]
[1725029132921,3.6458,137.13,137.03,42.0]
[1725029133120,42.0,137.16,137.04,1.4102]
[1725029133424,3.6448,137.16,137.06,42.0]
[1725029133728,42.0,137.2,137.08,42.0]
[1725029133923,0.05449711,137.15,137.14,3.645]
[1725029134217,42.0,137.2,137.14,3.645]
[1725029134218,0.05505826,137.16,137.14,3.645]
[1725029134525,0.05505826,137.16,137.13,3.65609383]
[1725029134526,42.05505826,137.16,137.13,0.04937683]
[1725029134712,42.0,137.14,137.01,45.61729602]
[1725029134920,42.0,137.14,137.07,3.6472]
[1725029135219,42.0,137.14,137.01,45.61729602]
[1725029135220,42.0,137.11,137.01,3.61729602]
[1725029135624,0.05104653,137.09,137.06,0.05390676]
[1725029135924,0.04645659,137.09,137.06,0.05273622]
[1725029137724,42.0,137.18,137.06,42.0]
[1725029138223,11.44,137.21,137.01,3.61729602]
[1725029138224,42.0,137.14,137.01,45.61729602]
[1725029138416,3.64743607,137.15,137.01,45.61729602]
[1725029138611,3.6466,137.1,137.08,0.04658978]
[1725029138817,0.05305082,137.11,137.08,3.63212296]
[1725029139026,0.05305082,137.11,137.08,0.05196547]
[1725029139617,42.0,137.09,137.08,0.05196547]
[1725029139914,45.6466,137.09,137.08,0.05196547]
[1725029140525,45.6466,137.09,136.99,3.64415469]
[1725029140526,42.0,137.09,136.99,3.64415469]
[1725029140722,42.0,137.03,136.98,1.4048]
[1725029141224,42.0,137.03,136.96,3.6501]
[1725029141426,0.04826514,137.01,136.98,0.05287708]
[1725029142521,0.04826514,137.01,137.0,3.649]
[1725029143223,42.0,137.09,136.97,1.3429]
[1725029143416,42.0,137.11,136.99,42.0]
[1725029143612,42.0,137.11,137.04,3.6478]
[1725029143613,3.6469,137.09,137.04,3.6478]
[1725029143815,42.0,137.11,137.03,3.60641621]
[1725029144016,0.05441236,137.08,137.06,0.05101585]
[1725029144721,3.6472,137.07,137.06,0.05101585]
[1725029144925,0.05441236,137.08,137.0,1.4281]
[1725029145114,45.55852363,137.09,137.0,1.4281]
[1725029145620,42.0,137.09,137.0,1.4281]
[1725029145929,0.05516163,137.06,137.03,0.05244913]
[1725029146823,3.6479,137.05,137.03,0.05244913]
[1725029147125,0.05516163,137.06,137.03,0.05244913]
[1725029148728,42.05516163,137.06,137.03,0.05244913]
[1725029148914,3.648,137.04,137.03,0.05244913]
[1725029149118,0.05516163,137.06,137.03,0.05244913]
[1725029149527,0.05516163,137.06,137.04,3.648]
[1725029149726,0.05516163,137.06,137.03,0.05244913]
[1725029149916,0.05516163,137.06,137.03,42.05244913]
[1725029150119,3.646,137.12,137.03,42.0]
[1725029150317,42.0,137.18,137.05,42.0]
[1725029150528,41.02,137.21,137.08,42.0]
[1725029150826,42.0,137.2,137.08,45.69728089]
[1725029151129,0.04675384,137.15,137.13,0.05284389]
[1725029151324,42.0532864,137.15,137.13,0.05284389]
[1725029151821,42.0532864,137.15,137.06,1.3948]
[1725029152027,42.0,137.15,137.03,3.64445103]
[1725029152214,3.6456,137.14,137.04,42.0]
[1725029152721,42.0,137.18,137.04,42.0]
[1725029152921,0.04613991,137.12,137.1,0.0540697]
[1725029153127,0.05137301,137.12,137.1,0.0540697]
[1725029153321,3.6461,137.11,137.1,0.0540697]
[1725029154328,0.05137301,137.12,137.1,0.0540697]
[1725029155925,0.05137301,137.12,137.01,2.8021]
[1725029155926,42.05137301,137.12,137.01,2.8021]
[1725029156117,42.0,137.1,137.01,1.4073]
[1725029156522,45.67021431,137.1,136.96,2.6684]
[1725029156826,42.0,137.07,136.96,2.6684]
[1725029157035,0.05399428,137.03,137.0,0.0503922]
[1725029157929,0.05399428,137.03,137.02,3.6485]
[1725029158130,0.05399428,137.03,137.02,7.22827627]
[1725029158522,0.05399428,137.03,137.02,3.6485]
[1725029159032,3.6464,137.1,137.01,42.0]
[1725029159218,42.0,137.13,137.01,42.0]
[1725029159830,42.0,137.16,137.03,42.0]
[1725029160031,42.0,137.13,137.06,0.05226155]
[1725029160238,0.05540818,137.11,137.08,0.04682172]
[1725029160618,3.6464,137.1,137.08,0.04682172]
[1725029160825,0.05540818,137.11,137.08,0.04682172]
[1725029161632,0.05540818,137.11,137.09,3.6465]
[1725029161822,0.05540818,137.11,137.08,42.04682172]
[1725029162224,0.05540818,137.11,137.06,1.3489]
[1725029162225,42.0,137.23,137.1,42.0]
[1725029162524,42.0,137.25,137.15,42.0]
[1725029162725,42.0,137.23,137.1,42.0]
[1725029162917,42.0,137.21,137.1,42.0]
[1725029163117,0.05045849,137.17,137.14,0.05524445]
[1725029163331,42.0,137.23,137.14,0.05524445]
[1725029163332,42.0,137.25,137.14,3.57721901]
[1725029163535,45.73002305,137.25,137.12,42.0]
[1725029163829,42.0,137.2,137.18,0.053402]
[1725029164429,0.05384371,137.21,137.18,0.053402]
[1725029165028,0.05384371,137.21,137.18,42.053402]
[1725029165237,42.0,137.31,137.18,42.0]
[1725029165830,42.0,137.31,137.2,42.0]
[1725029166219,0.05319752,137.27,137.24,0.05431596]
[1725029167532,0.05319752,137.27,137.25,3.6422]
[1725029167733,0.05319752,137.27,137.24,0.05431596]
[1725029168129,0.05319752,137.27,137.26,3.6421]
[1725029168436,15.5053915,137.37,137.25,42.0]
[1725029168437,11.82,137.37,137.25,42.0]
[1725029168928,11.82,137.37,137.26,1.291]
[1725029169433,42.0,137.38,137.26,1.291]
[1725029169434,0.04903765,137.33,137.3,0.05475273]
[1725029171230,0.04903765,137.33,137.32,3.6405]
[1725029171431,0.04903765,137.33,137.3,0.05475273]
[1725029171641,0.04903765,137.33,137.31,3.6406]
[1725029171941,0.04903765,137.33,137.3,0.05475273]
[1725029172321,0.04903765,137.33,137.32,3.6405]
[1725029173031,3.6382,137.41,137.32,42.0]
[1725029173341,3.63877981,137.41,137.29,42.0]
[1725029173628,45.57871592,137.43,137.29,42.0]
[1725029173839,0.116,137.45,137.01,1.4235]
[1725029173840,42.0,137.3,137.01,1.4235]
[1725029174034,0.0317584,137.18,137.16,0.05012418]
[1725029174334,0.0317584,137.18,137.16,0.04893404]
[1725029174534,0.0317584,137.18,137.16,3.69373404]
[1725029174739,0.0317584,137.18,137.16,0.04893404]
[1725029175036,45.59449511,137.27,137.15,3.66717365]
[1725029175231,42.0,137.27,137.14,42.0]
[1725029175432,42.0,137.27,137.13,11.8]
[1725029175433,53.8,137.29,137.16,42.0]
[1725029175937,53.8,137.29,137.21,0.04635224]
[1725029176232,53.8,137.29,137.21,3.68965224]
[1725029176437,53.8,137.29,137.21,0.04635224]
[1725029176626,11.8,137.29,137.21,3.68975224]
[1725029176824,42.0,137.31,137.21,0.04635224]
[1725029177029,42.0,137.31,137.25,0.05498494]
[1725029177231,15.45224868,137.34,137.25,0.05498494]
[1725029177232,42.0,137.34,137.25,0.05498494]
[1725029177427,42.0,137.34,137.28,0.05477396]
[1725029177632,45.6403,137.34,137.28,0.05477396]
[1725029178034,3.641,137.31,137.28,0.05477396]
[1725029178333,42.0,137.29,137.28,0.05477396]
[1725029178546,45.56504565,137.29,137.21,1.336]
[1725029178730,42.0,137.26,137.19,3.6439]
[1725029179035,42.0,137.28,137.19,3.6414941]
[1725029179243,42.0,137.26,137.16,1.4189]
[1725029179535,0.05477396,137.22,137.2,0.0552232]
[1725029179738,0.05477396,137.22,137.2,3.64784574]
[1725029180039,0.05477396,137.22,137.2,0.04712415]
[1725029181131,0.05477396,137.22,137.21,3.6435]
[1725029182133,42.0,137.28,137.19,3.70920557]
[1725029182339,42.0,137.28,137.16,43.4189]
[1725029182731,3.6426,137.25,137.2,3.6435]
[1725029183038,3.6426,137.25,137.21,0.04921698]
[1725029183243,42.0,137.24,137.21,0.04921698]
[1725029183844,53.8,137.24,137.12,3.66773318]
[1725029184036,42.0,137.18,137.09,15.9106]
[1725029184336,42.0,137.18,136.91,18.2564]
[1725029184337,42.0,137.14,137.03,11.8]
[1725029184540,42.0,137.14,137.03,56.6175]
[1725029184747,42.0,137.16,137.11,3.646]
[1725029184938,42.0,137.18,137.05,42.0]
[1725029185140,0.04637357,137.15,137.12,0.05473826]